[Event "TUR-ch Youth U14 2019"]
[Site "Belek"]
[Date "2019.01.24"]
[Round "7"]
[White "Basara, Arda"]
[Black "Ozsac, Samet Harun"]
[Result "0-1"]
[ECO "B07"]
[WhiteElo "1737"]
[BlackElo "1743"]
[Annotator "NA"]
[PlyCount "90"]
[EventDate "2019.01.20"]
[EventType "swiss"]
[EventCountry "TUR"]
[SourceTitle "playchess.com"]
[Source "ChessBase"]
[SourceQuality "1"]
[TimeControl "5400+30"]

1. d4 Nf6 2. Nf3 g6 3. Nbd2 Bg7 4. e4 d6 5. Bd3 O-O 6. O-O Nbd7 7. Re1 e5 8. c3 b6 9. a4 a5 10. Bb5 {[%emt 0:45:00]} Bb7 {[%emt 0:49:00]} 11. d5 {[%emt 0:01:30]} Nb8 {[%emt 0:19:30]} 12. b4 {[%emt 0:05:30]} axb4 {[%emt 0:13:55]} 13. cxb4 {[%emt 0:01:30]} Ba6 {[%emt 0:11:21]} 14. Bb2 {[%emt 0:04:30]} Nfd7 {[%emt 0:02:03]} 15. Qb3 {[%emt 0:03:30]} Kh8 {[%emt 0:00:48]} 16. Rac1 {[%emt 0:04:30]} f5 {[%emt 0:00:48]} 17. Rc3 {[%emt 0:04:30]} Ra7 {[%emt 0:00:25]} 18. Rec1 {[%emt 0:02:30]} Rf7 {[%emt 0:00:32]} 19. Qc2 {[%emt 0:00:30]} Nf8 {[%emt 0:00:29]} 20. Qd3 {[%emt 0:08:06]} f4 {[%emt 0:00:30]} 21. a5 {[%emt 0:01:38]} bxa5 {[%emt 0:00:33]} 22. bxa5 {[%emt 0:01:17]} Bxb5 {[%emt 0:01:00]} 23. Qxb5 {[%emt 0:00:01]} Na6 {[%emt 0:00:01]} 24. Ba3 {[%emt 0:00:38]} Qa8 {[%emt 0:00:30]} 25. Nc4 {[%emt 0:03:33]} Rb7 {[%emt 0:00:31]} 26. Qc6 {[%emt 0:01:08]} Qa7 {[%emt 0:00:32]} 27. Qe8 {[%emt 0:02:40]} Rd7 {[%emt 0:00:26]} 28. Nxd6 {[%emt 0:06:19]} cxd6 {[%emt 0:00:45]} 29. Rc8 {[%emt 0:00:01]} Rbc7 {[%emt 0:00:16]} 30. Ng5 {[%emt 0:01:40]} Rxc1+ {[%emt 0:00:41]} 31. Bxc1 {[%emt 0:00:30]} Nc5 {[%emt 0:00:14]} 32. Ra8 {[%emt 0:03:50]} Qb7 {[%emt 0:00:27]} 33. h3 {[%emt 0:00:48]} Qb1 {[%emt 0:00:58]} 34. Ne6 {[%emt 0:00:15]} Qxc1+ {[%emt 0:00:12]} 35. Kh2 {[%emt 0:00:30]} Ncxe6 {[%emt 0:00:30]} 36. dxe6 {[%emt 0:00:30]} f3 {[%emt 0:00:30]} 37. exd7 {[%emt 0:00:30]} Qf4+ {[%emt 0:00:30]} 38. g3 {[%emt 0:00:30]} Qd2 {[%emt 0:00:00]} 39. Qxf8+ {[%emt 0:01:17]} Bxf8 {[%emt 0:00:37]} 40. Rxf8+ {[%emt 0:00:05]} Kg7 {[%emt 0:00:30]} 41. Rg8+ {[%emt 0:00:30]} Kh6 {[%emt 0:00:30]} 42. h4 {[%emt 0:00:30]} Qxf2+ {[%emt 0:00:58]} 43. Kh3 {[%emt 0:00:09]} Qg2+ {[%emt 0:00:35]} 44. Kg4 {[%emt 0:00:30]} Qe2 {[%emt 0:00:02]} 45. d8=B {[%emt 0:00:00]} f2+ {[%emt 0:00:30]} 0-1

[Event "TUR-ch Youth U14 2019"]
[Site "Belek"]
[Date "2019.01.24"]
[Round "7"]
[White "Kara, Gulce Nehir"]
[Black "Hafizoglu, Bengi"]
[Result "1-0"]
[ECO "B48"]
[WhiteElo "1702"]
[BlackElo "1711"]
[Annotator "NA"]
[PlyCount "85"]
[EventDate "2019.01.20"]
[EventType "swiss"]
[EventCountry "TUR"]
[SourceTitle "playchess.com"]
[Source "ChessBase"]
[SourceQuality "1"]
[TimeControl "5400+30"]

1. e4 c5 2. Nf3 e6 3. d4 cxd4 4. Nxd4 Nc6 5. Nc3 Qc7 6. Be3 a6 7. Qf3 Nf6 8. O-O-O Be7 9. Kb1 O-O 10. g4 b5 11. g5 Ne8 12. h4 Nxd4 13. Bxd4 b4 14. Ne2 Bb7 15. Qd3 {[%emt 0:45:30]} e5 {[%emt 0:47:30]} 16. Be3 {[%emt 0:00:30]} Nd6 {[%emt 0:00:30]} 17. Ng3 {[%emt 0:10:30]} a5 {[%emt 0:03:30]} 18. Bc1 {[%emt 0:13:30]} a4 {[%emt 0:04:30]} 19. f4 {[%emt 0:09:30]} Ba6 {[%emt 0:08:30]} 20. Qf3 {[%emt 0:02:56]} Rfc8 {[%emt 0:09:30]} 21. Rh2 {[%emt 0:01:39]} Nc4 {[%emt 0:05:30]} 22. Nf5 {[%emt 0:00:18]} Bc5 {[%emt 0:01:30]} 23. h5 {[%emt 0:02:59]} Rf8 {[%emt 0:09:08]} 24. Qg4 {[%emt 0:03:05]} Na3+ {[%emt 0:05:27]} 25. Ka1 {[%emt 0:09:01]} Bxf1 {[%emt 0:05:14]} 26. Rxf1 {[%emt 0:00:07]} Bb6 {[%emt 0:01:34]} 27. g6 {[%emt 0:01:19]} h6 {[%emt 0:00:21]} 28. gxf7+ {[%emt 0:00:30]} Rxf7 {[%emt 0:00:37]} 29. Nxh6+ {[%emt 0:00:22]} Kf8 {[%emt 0:00:02]} 30. Nxf7 {[%emt 0:00:12]} Nxc2+ {[%emt 0:00:05]} 31. Kb1 {[%emt 0:02:50]} b3 {[%emt 0:00:55]} 32. a3 {[%emt 0:00:26]} Qc4 {[%emt 0:00:42]} 33. Qe2 {[%emt 0:00:26]} Qxe2 {[%emt 0:01:13]} 34. Rxe2 {[%emt 0:00:30]} Kxf7 {[%emt 0:00:30]} 35. fxe5+ {[%emt 0:00:30]} Ke6 {[%emt 0:00:30]} 36. Bf4 {[%emt 0:00:30]} Rf8 {[%emt 0:00:30]} 37. Rg2 {[%emt 0:00:30]} Ne3 {[%emt 0:00:30]} 38. Rg6+ {[%emt 0:00:30]} Ke7 {[%emt 0:00:30]} 39. Bg5+ {[%emt 0:00:30]} Ke8 {[%emt 0:00:30]} 40. Rxf8+ {[%emt 0:00:30]} Kxf8 {[%emt 0:00:30]} 41. Rxb6 {[%emt 0:00:30]} Nc4 {[%emt 0:00:30]} 42. Rb4 {[%emt 0:00:30]} Nxe5 {[%emt 0:00:30]} 43. Rxa4 {[%emt 0:00:30]} 1-0

[Event "TUR-ch Youth U14 2019"]
[Site "Belek"]
[Date "2019.01.24"]
[Round "7"]
[White "Eraslan, Yagmur"]
[Black "Tokat, Nehir"]
[Result "1-0"]
[ECO "B40"]
[WhiteElo "1567"]
[BlackElo "1665"]
[Annotator "NA"]
[PlyCount "65"]
[EventDate "2019.01.20"]
[EventType "swiss"]
[EventCountry "TUR"]
[SourceTitle "playchess.com"]
[Source "ChessBase"]
[SourceQuality "1"]
[TimeControl "5400+30"]

1. e4 c5 2. Nf3 e6 3. d4 cxd4 4. Nxd4 Qb6 5. c3 Nc6 6. Nxc6 bxc6 7. Bd3 Bc5 8. O-O d5 9. e5 Qc7 10. Qh5 g6 {[%emt 1:02:00]} 11. Qe2 {[%emt 0:31:30]} f6 {[%emt 0:02:30]} 12. exf6 {[%emt 0:02:30]} Nxf6 {[%emt 0:00:30]} 13. Bh6 {[%emt 0:02:30]} e5 {[%emt 0:05:30]} 14. Kh1 {[%emt 0:04:30]} Ng4 {[%emt 0:01:30]} 15. Bf4 {[%emt 0:12:30]} O-O {[%emt 0:06:01]} 16. Bg3 {[%emt 0:00:30]} Qb6 {[%emt 0:04:04]} 17. f3 {[%emt 0:01:30]} Ne3 {[%emt 0:00:12]} 18. Re1 {[%emt 0:00:00]} e4 {[%emt 0:03:25]} 19. fxe4 {[%emt 0:03:00]} Bg4 {[%emt 0:00:08]} 20. Qd2 {[%emt 0:00:30]} dxe4 {[%emt 0:01:27]} 21. Bxe4 {[%emt 0:02:30]} Rad8 {[%emt 0:01:27]} 22. Qc1 {[%emt 0:00:30]} Rd1 {[%emt 0:05:32]} 23. Rxd1 {[%emt 0:00:00]} Nxd1 {[%emt 0:00:39]} 24. Bd3 {[%emt 0:06:00]} Be3 {[%emt 0:03:31]} 25. Qc2 {[%emt 0:00:00]} Qxb2 {[%emt 0:01:03]} 26. Qxb2 {[%emt 0:09:00]} Nxb2 {[%emt 0:00:30]} 27. Ba6 {[%emt 0:00:00]} c5 {[%emt 0:00:59]} 28. Na3 {[%emt 0:02:00]} Rf6 {[%emt 0:01:53]} 29. Nc4 {[%emt 0:02:30]} Rxa6 {[%emt 0:00:58]} 30. Nxe3 {[%emt 0:01:30]} Be6 {[%emt 0:00:16]} 31. a3 {[%emt 0:00:00]} c4 {[%emt 0:00:39]} 32. Nc2 {[%emt 0:03:34]} Nd3 {[%emt 0:00:32]} 33. Bb8 {[%emt 0:08:24]} 1-0

[Event "TUR-ch Youth U14 2019"]
[Site "Belek"]
[Date "2019.01.24"]
[Round "7"]
[White "Oflaz, Avni"]
[Black "Kavri, Yusuf Eren"]
[Result "0-1"]
[ECO "E21"]
[WhiteElo "1372"]
[BlackElo "1761"]
[Annotator "NA"]
[PlyCount "79"]
[EventDate "2019.01.20"]
[EventType "swiss"]
[EventCountry "TUR"]
[SourceTitle "playchess.com"]
[Source "ChessBase"]
[SourceQuality "1"]
[TimeControl "5400+30"]

1. d4 Nf6 2. c4 e6 3. Nc3 Bb4 4. Bd2 b6 5. Nf3 Bb7 6. e3 O-O 7. Be2 Bxc3 8. Bxc3 Ne4 9. Rc1 d6 10. d5 e5 11. Bd3 Nxc3 12. Rxc3 f5 13. e4 f4 14. b4 {[%emt 0:50:00]} Nd7 {[%emt 0:47:00]} 15. Qb3 {[%emt 0:13:30]} Rb8 {[%emt 0:05:30]} 16. a3 {[%emt 0:07:30]} Kh8 {[%emt 0:07:30]} 17. Ke2 {[%emt 0:03:30]} Qe7 {[%emt 0:05:30]} 18. Rcc1 {[%emt 0:03:30]} g5 {[%emt 0:10:30]} 19. h3 {[%emt 0:02:04]} h6 {[%emt 0:03:30]} 20. Rcf1 {[%emt 0:04:52]} Kg7 {[%emt 0:02:53]} 21. g4 {[%emt 0:03:33]} fxg3 {[%emt 0:05:19]} 22. fxg3 {[%emt 0:00:07]} Rf7 {[%emt 0:00:00]} 23. g4 {[%emt 0:01:12]} Nf8 {[%emt 0:02:35]} 24. Ne1 {[%emt 0:01:58]} Ng6 {[%emt 0:01:20]} 25. Ng2 {[%emt 0:00:29]} Rbf8 {[%emt 0:01:38]} 26. Bc2 {[%emt 0:01:33]} Bc8 {[%emt 0:01:53]} 27. Rxf7+ {[%emt 0:01:34]} Qxf7 {[%emt 0:01:10]} 28. Qg3 {[%emt 0:00:15]} c6 {[%emt 0:00:37]} 29. Bb1 {[%emt 0:02:09]} b5 {[%emt 0:01:43]} 30. Ba2 {[%emt 0:00:44]} cxd5 {[%emt 0:01:32]} 31. cxd5 {[%emt 0:00:23]} Qc7 {[%emt 0:00:28]} 32. Bb3 {[%emt 0:01:14]} a5 {[%emt 0:00:55]} 33. Qd3 {[%emt 0:00:48]} Qf7 {[%emt 0:01:42]} 34. Qg3 {[%emt 0:00:41]} Qc7 {[%emt 0:01:15]} 35. Qd3 {[%emt 0:00:04]} Bd7 {[%emt 0:01:05]} 36. Rf1 {[%emt 0:01:24]} Rxf1 {[%emt 0:00:45]} 37. Kxf1 {[%emt 0:00:03]} Qc1+ {[%emt 0:00:23]} 38. Bd1 {[%emt 0:00:12]} axb4 {[%emt 0:01:34]} 39. axb4 {[%emt 0:00:06]} Qb2 {[%emt 0:00:00]} 40. Bb3 {[%emt 0:01:00]} 0-1

[Event "TUR-ch Youth U14 2019"]
[Site "Belek"]
[Date "2019.01.24"]
[Round "7"]
[White "Caglayan, Ezgisu"]
[Black "Ince, Safiye Oyku"]
[Result "1/2-1/2"]
[ECO "A45"]
[WhiteElo "1199"]
[BlackElo "1870"]
[Annotator "NA"]
[PlyCount "60"]
[EventDate "2019.01.20"]
[EventType "swiss"]
[EventCountry "TUR"]
[SourceTitle "playchess.com"]
[Source "ChessBase"]
[SourceQuality "1"]
[TimeControl "5400+30"]

1. d4 Nf6 {[%emt 0:00:30]} 2. f4 {[%emt 0:00:30]} g6 {[%emt 0:00:30]} 3. e3 {[%emt 0:00:30]} Bg7 {[%emt 0:00:30]} 4. Nf3 {[%emt 0:00:00]} d6 {[%emt 0:00:00]} 5. Bd3 {[%emt 0:00:00]} O-O {[%emt 0:00:30]} 6. O-O {[%emt 0:00:30]} Nc6 {[%emt 0:00:30]} 7. e4 {[%emt 0:01:00] A45: Trompowsky Attack} Nb4 {[%emt 0:03:30]} (7... e5 8. d5 Nb4 9. fxe5 dxe5 10. Be3 b6 11. Nc3 Ng4 12. Bg5 Qd6 13. Qe2 h6 14. Bd2 Nxd3 15. Qxd3 {1-0 (48) Gleizerov,E (2544)-Das,A (2404) Gurgon 2009}) 8. c3 $146 {[%emt 0:01:30]} ({Predecessor:} 8. e5 dxe5 9. fxe5 Nfd5 10. Bc4 c5 11. c3 Nc6 12. dxc5 Be6 13. Qe2 Qc7 14. Re1 Na5 {½-½ (73) Tleptsok,R (2187)-Kakabayaev,M (2329) Moscow 2017}) 8... Nxd3 {[%emt 0:01:30]} 9. Qxd3 {[%emt 0:00:30]} c5 {[%emt 0:01:30]} 10. dxc5 {[%emt 0:07:00]} dxc5 {[%emt 0:00:30]} 11. Qxd8 {[%emt 0:01:30]} Rxd8 {[%emt 0:00:00]} 12. e5 {[%emt 0:00:30]} Nd5 {[%emt 0:00:30]} 13. Re1 {[%emt 0:04:30]} Bh6 {[%emt 0:08:30]} 14. g3 {[%emt 0:01:30]} Bg4 {[%emt 0:00:30]} 15. Nbd2 {[%emt 0:04:30]} b5 {[%emt 0:00:30]} 16. Kf2 {[%emt 0:00:30]} b4 {[%emt 0:08:30]} 17. c4 {[%emt 0:01:30]} Nb6 {[%emt 0:04:30]} 18. b3 {[%emt 0:01:30]} Rd3 {[%emt 0:01:30]} 19. Re3 {[%emt 0:01:30]} Rxe3 {[%emt 0:03:30]} 20. Kxe3 {[%emt 0:00:30]} f6 {[%emt 0:00:30]} 21. exf6 {[%emt 0:05:00]} exf6 {[%emt 0:00:30]} 22. Kf2 {[%emt 0:00:30]} Bg7 {[%emt 0:06:00]} 23. Bb2 {[%emt 0:02:30]} Re8 {[%emt 0:04:30]} 24. Re1 {[%emt 0:01:30]} Rxe1 {[%emt 0:00:30]} 25. Kxe1 {[%emt 0:00:30]} Bf5 {[%emt 0:00:30]} 26. Ke2 {[%emt 0:00:30]} Nc8 {[%emt 0:01:00]} 27. Ke3 {[%emt 0:00:30]} Nd6 {[%emt 0:53:30]} 28. Ne1 $11 {[%emt 0:39:00]} Kf7 {[%emt 0:00:30]} 29. Nd3 {[%emt 0:00:30]} Bxd3 {[%emt 0:00:30]} 30. Kxd3 {[%emt 0:02:30]} Ke6 {[%emt 0:02:30]} 1/2-1/2

[Event "TUR-ch Youth U14 2019"]
[Site "Belek"]
[Date "2019.01.25"]
[Round "9"]
[White "Ince, Safiye Oyku"]
[Black "Tanir, Simay"]
[Result "1-0"]
[ECO "A04"]
[WhiteElo "1870"]
[BlackElo "1333"]
[Annotator "NA"]
[PlyCount "73"]
[EventDate "2019.01.20"]
[EventType "swiss"]
[EventCountry "TUR"]
[SourceTitle "playchess.com"]
[Source "ChessBase"]
[SourceQuality "1"]
[TimeControl "5400+30"]

1. Nf3 {[%emt 0:00:30]} e6 {[%emt 0:00:30]} 2. b3 {[%emt 0:00:30]} f5 {[%emt 0:03:30]} 3. Bb2 {[%emt 0:00:30]} d5 {[%emt 0:00:30]} 4. d3 {[%emt 0:00:30]} Nf6 {[%emt 0:02:30]} 5. Nbd2 {[%emt 0:01:30]} c5 {[%emt 0:03:30]} 6. g3 {[%emt 0:01:30]} Nc6 {[%emt 0:01:30]} 7. Bg2 {[%emt 0:00:30]} Bd6 {[%emt 0:02:30]} 8. O-O {[%emt 0:07:30]} O-O {[%emt 0:06:30]} 9. e4 {[%emt 0:01:30]} d4 {[%emt 0:06:30]} 10. a3 {[%emt 0:17:30]} (10. exf5 $14 exf5 11. Qc1) 10... f4 {[%emt 0:05:30]} 11. b4 {[%emt 0:08:30]} cxb4 {[%emt 0:11:30]} 12. Nxd4 {[%emt 0:06:30]} Nxd4 {[%emt 0:05:30]} 13. Bxd4 {[%emt 0:00:00]} e5 {[%emt 0:00:30]} 14. Bb2 {[%emt 0:00:00]} bxa3 {[%emt 0:00:30]} 15. Bxa3 {[%emt 0:00:30]} Bxa3 {[%emt 0:00:30]} 16. Rxa3 {[%emt 0:00:00]} g5 {[%emt 0:04:30]} 17. Nc4 {[%emt 0:03:00]} Qe7 {[%emt 0:00:30]} 18. Ra5 {[%emt 0:04:30]} Nd7 {[%emt 0:18:30]} 19. Qa1 {[%emt 0:08:30]} f3 {[%emt 0:09:08]} (19... b6 $16 20. Rxa7 Rxa7 21. Qxa7 Qc5 22. gxf4 gxf4) 20. Bh3 {[%emt 0:07:30]} Qg7 {[%emt 0:02:29]} 21. Be6+ {[%emt 0:01:30]} ({Don't take} 21. Rxa7 Rxa7 22. Be6+ Kh8 $18 23. Qxa7 b5 $18) 21... Kh8 {[%emt 0:00:13]} 22. Bxd7 {[%emt 0:04:30]} Bxd7 {[%emt 0:00:58]} 23. Qxe5 {[%emt 0:00:30]} Bh3 {[%emt 0:01:02]} 24. Qxg7+ {[%emt 0:01:30]} Kxg7 {[%emt 0:00:30]} 25. Rb1 {[%emt 0:00:00]} b6 {[%emt 0:02:40]} 26. Rxg5+ {[%emt 0:00:00]} Kh6 {[%emt 0:00:00]} 27. Rbb5 {[%emt 0:01:30]} Be6 $18 {[%emt 0:00:13]} 28. Rh5+ {[%emt 0:01:30]} Kg6 {[%emt 0:00:15]} 29. Rbg5+ {[%emt 0:00:00]} Kf6 {[%emt 0:00:29]} 30. e5+ {[%emt 0:00:00]} Ke7 {[%emt 0:00:11]} 31. Rxh7+ {[%emt 0:00:30]} Kd8 {[%emt 0:00:25]} 32. Na3 {[%emt 0:01:30]} a5 {[%emt 0:00:32]} 33. Rb7 {[%emt 0:00:30]} Ra6 {[%emt 0:00:43]} 34. Rg6 {[%emt 0:00:30]} Kc8 {[%emt 0:00:38]} 35. Re7 {[%emt 0:00:30]} Bh3 {[%emt 0:00:32]} 36. Rf6 {[%emt 0:01:30]} Rd8 {[%emt 0:00:19]} 37. Rxf3 {[%emt 0:01:30]} 1-0

[Event "TUR-ch Youth U14 2019"]
[Site "Belek"]
[Date "2019.01.25"]
[Round "9"]
[White "Bicer, Atakan Mert"]
[Black "Basara, Arda"]
[Result "0-1"]
[ECO "D35"]
[WhiteElo "1854"]
[BlackElo "1737"]
[Annotator "NA"]
[PlyCount "157"]
[EventDate "2019.01.20"]
[EventType "swiss"]
[EventCountry "TUR"]
[SourceTitle "playchess.com"]
[Source "ChessBase"]
[SourceQuality "1"]
[TimeControl "5400+30"]

1. c4 {[%emt 0:00:30]} c6 {[%emt 0:04:30]} 2. Nc3 {[%emt 0:01:30]} d5 {[%emt 0:01:30]} 3. cxd5 {[%emt 0:01:30]} cxd5 {[%emt 0:00:30]} 4. d4 {[%emt 0:01:30]} Nf6 {[%emt 0:10:30]} 5. Nf3 {[%emt 0:09:30]} e6 {[%emt 0:07:30]} 6. Bg5 {[%emt 0:07:30]} Be7 {[%emt 0:01:30]} 7. e3 {[%emt 0:00:30]} O-O {[%emt 0:00:30]} 8. Bd3 {[%emt 0:00:00]} h6 {[%emt 0:01:30]} 9. Bh4 {[%emt 0:04:00]} Nbd7 {[%emt 0:00:30]} 10. O-O {[%emt 0:03:30]} a6 {[%emt 0:03:30] LiveBook: 3 Games} 11. a4 {[%emt 0:01:30]} b6 {[%emt 0:02:30]} 12. Qe2 {[%emt 0:02:30]} Bb7 {[%emt 0:02:30]} 13. Rfc1 {[%emt 0:05:30]} Ne4 {[%emt 0:04:30]} 14. Bxe7 {[%emt 0:17:30]} Qxe7 {[%emt 0:04:30]} 15. Nd2 {[%emt 0:00:30]} Nxd2 {[%emt 0:12:30]} 16. Qxd2 {[%emt 0:00:30]} e5 {[%emt 0:01:30]} 17. Bf5 {[%emt 0:03:30]} e4 {[%emt 0:06:30]} 18. a5 {[%emt 0:05:30]} b5 {[%emt 0:08:30]} 19. Na2 {[%emt 0:03:30]} g6 {[%emt 0:09:57]} 20. Bxd7 {[%emt 0:12:31]} ({Better is} 20. Rc7 $16 gxf5 21. Rxb7) 20... Qxd7 {[%emt 0:00:01]} 21. Rc5 {[%emt 0:00:00]} Rfc8 {[%emt 0:08:18]} (21... f6 $14) 22. Nb4 {[%emt 0:04:08]} Rxc5 {[%emt 0:04:02]} (22... Qd8 $16) 23. dxc5 {[%emt 0:03:30]} Bc6 {[%emt 0:01:28]} 24. Rd1 {[%emt 0:03:58]} Qe6 {[%emt 0:00:36]} 25. Qd4 {[%emt 0:02:34]} Bb7 {[%emt 0:01:22]} 26. Nxd5 {[%emt 0:00:35]} Qxd5 {[%emt 0:00:30]} 27. Qxd5 {[%emt 0:00:08]} Bxd5 {[%emt 0:00:11]} 28. Rxd5 {[%emt 0:00:30]} b4 {[%emt 0:00:00]} 29. Kf1 {[%emt 0:00:47]} Rb8 {[%emt 0:00:00]} 30. Rd6 {[%emt 0:01:59]} Rb5 {[%emt 0:00:42]} 31. c6 {[%emt 0:00:42]} Rc5 {[%emt 0:00:23]} 32. Ke1 {[%emt 0:00:36]} Kf8 {[%emt 0:00:43]} 33. Kd2 {[%emt 0:00:25]} (33. b3 $16) 33... b3 $1 {[%emt 0:01:12]} 34. Rd8+ {[%emt 0:03:51]} Ke7 {[%emt 0:00:09]} 35. Rd7+ {[%emt 0:00:04]} Ke6 {[%emt 0:01:40]} 36. Rb7 {[%emt 0:00:12]} Rc2+ {[%emt 0:00:42]} 37. Kd1 {[%emt 0:00:30]} Rxc6 {[%emt 0:00:30]} 38. Rxb3 {[%emt 0:00:30]} Kd5 {[%emt 0:00:30]} 39. Kd2 {[%emt 0:00:30]} Rc5 {[%emt 0:00:30]} 40. Ra3 {[%emt 0:00:00]} Rc4 {[%emt 0:00:13]} (40... Rb5 $14) 41. b3 {[%emt 0:00:03]} Rc5 {[%emt 0:00:18]} 42. Ra4 {[%emt 0:00:29]} Kc6 {[%emt 0:01:08]} 43. Rxe4 {[%emt 0:02:15]} Rxa5 {[%emt 0:00:01]} 44. Kc3 {[%emt 0:00:00]} Ra2 {[%emt 0:00:24] [#]} (44... Kd7 $16 {was necessary.} 45. Ra4 Rc5+ 46. Kd3 a5) 45. Rf4 $1 {[%emt 0:00:28]} f5 $11 {[%emt 0:00:00]} 46. Kc4 {[%emt 0:00:17]} (46. Ra4 $18 Rxf2 47. Rxa6+ Kd5 48. Rxg6) 46... Rc2+ {[%emt 0:00:42]} 47. Kd3 {[%emt 0:00:08]} Rb2 {[%emt 0:00:00]} 48. Kc3 {[%emt 0:00:28]} Re2 {[%emt 0:00:09]} 49. h3 {[%emt 0:00:16]} h5 {[%emt 0:00:11]} 50. Kc4 {[%emt 0:00:52]} Rc2+ {[%emt 0:01:02]} 51. Kd4 {[%emt 0:00:09]} Kd6 {[%emt 0:01:05]} 52. Kd3 {[%emt 0:00:12]} Rb2 {[%emt 0:00:00]} 53. Kc3 {[%emt 0:00:42]} Ra2 {[%emt 0:00:14]} 54. Rd4+ {[%emt 0:00:00]} Kc5 {[%emt 0:00:08]} 55. Rd2 {[%emt 0:00:55]} Ra1 {[%emt 0:00:01]} 56. h4 {[%emt 0:00:07]} Rc1+ {[%emt 0:00:29]} 57. Rc2 {[%emt 0:00:14]} Rd1 {[%emt 0:00:18]} 58. Rd2 {[%emt 0:00:26]} Rc1+ {[%emt 0:00:54]} 59. Kb2 {[%emt 0:00:05]} Rh1 {[%emt 0:00:01]} 60. g3 {[%emt 0:00:32]} Rf1 {[%emt 0:00:05]} 61. Rc2+ {[%emt 0:00:33]} Kd5 {[%emt 0:01:15]} 62. Kc3 {[%emt 0:00:49]} Ke4 {[%emt 0:00:21]} 63. Kc4 {[%emt 0:00:57]} Kf3 {[%emt 0:00:23]} 64. Kc5 {[%emt 0:01:03]} Rxf2 {[%emt 0:00:00]} 65. Rxf2+ {[%emt 0:00:48]} Kxf2 {[%emt 0:00:26]} 66. Kb6 {[%emt 0:00:30]} Kxg3 {[%emt 0:00:30]} 67. Kxa6 {[%emt 0:00:30]} Kxh4 {[%emt 0:00:30]} 68. b4 {[%emt 0:00:30]} g5 {[%emt 0:00:30]} 69. b5 {[%emt 0:00:30]} f4 {[%emt 0:00:30]} 70. b6 {[%emt 0:00:30]} f3 {[%emt 0:00:30]} 71. b7 {[%emt 0:00:00]} f2 {[%emt 0:00:00]} 72. b8=Q {[%emt 0:00:00]} f1=Q+ {[%emt 0:00:00]} 73. Ka7 {[%emt 0:00:00]} Qa1+ {[%emt 0:00:02]} 74. Kb7 {[%emt 0:00:00]} Qb2+ {[%emt 0:00:30]} 75. Kc8 {[%emt 0:00:00]} Qxb8+ {[%emt 0:00:00]} 76. Kxb8 {[%emt 0:00:00]} Kg4 {[%emt 0:00:17]} 77. Kc7 {[%emt 0:00:00]} Kf3 {[%emt 0:00:00]} 78. Kd6 {[%emt 0:00:00]} Kxe3 {[%emt 0:00:00]} 79. Ke5 {[%emt 0:00:00]} 0-1

[Event "TUR-ch Youth U14 2019"]
[Site "Belek"]
[Date "2019.01.25"]
[Round "9"]
[White "Ozsac, Samet Harun"]
[Black "Kavri, Yusuf Eren"]
[Result "1/2-1/2"]
[ECO "C77"]
[WhiteElo "1743"]
[BlackElo "1761"]
[Annotator "NA RC"]
[PlyCount "112"]
[EventDate "2019.01.20"]
[EventType "swiss"]
[EventCountry "TUR"]
[SourceTitle "playchess.com"]
[Source "ChessBase"]
[SourceQuality "1"]
[TimeControl "5400+30"]

1. e4 {[%emt 0:00:30]} e5 {[%emt 0:00:30]} 2. Nf3 {[%emt 0:00:30]} Nc6 {[%emt 0:00:00]} 3. Bb5 {[%emt 0:01:30]} a6 {[%emt 0:01:00]} 4. Ba4 {[%emt 0:02:30]} Nf6 {[%emt 0:00:30]} 5. Nc3 {[%emt 0:03:30]} b5 {[%emt 0:06:30]} 6. Bb3 {[%emt 0:01:30]} Be7 {[%emt 0:01:30]} 7. d3 {[%emt 0:08:30]} d6 {[%emt 0:03:30]} 8. a4 {[%emt 0:10:30]} b4 {[%emt 0:10:30]} 9. Nd5 {[%emt 0:03:30]} Bg4 {[%emt 0:11:30]} 10. a5 {[%emt 0:15:30]} O-O {[%emt 0:04:30]} 11. Be3 {[%emt 0:12:30]} Nb8 {[%emt 0:22:30]} 12. Nxb4 {[%emt 0:14:30]} c6 {[%emt 0:02:30]} 13. h3 {[%emt 0:08:11]} Bxf3 {[%emt 0:10:30]} 14. Qxf3 {[%emt 0:03:12]} d5 {[%emt 0:02:13]} 15. Bd2 {[%emt 0:05:22]} dxe4 {[%emt 0:06:52]} 16. dxe4 {[%emt 0:02:06]} Qd4 {[%emt 0:00:49]} 17. Nd3 {[%emt 0:01:18]} Bd6 {[%emt 0:05:07]} 18. Ra4 {[%emt 0:01:50]} Qa7 {[%emt 0:00:45]} 19. Be3 {[%emt 0:01:41]} Qe7 {[%emt 0:01:04]} 20. Rc4 {[%emt 0:00:39]} Rc8 {[%emt 0:02:01]} 21. Nc5 {[%emt 0:00:37]} Nbd7 {[%emt 0:01:40]} 22. Nxd7 {[%emt 0:00:13]} Nxd7 {[%emt 0:01:16]} 23. O-O {[%emt 0:00:40]} Nc5 {[%emt 0:01:46]} 24. Bxc5 {[%emt 0:00:30]} Bxc5 {[%emt 0:00:18]} 25. Rd1 {[%emt 0:00:33]} Rd8 {[%emt 0:01:26]} 26. Rxd8+ {[%emt 0:01:01]} Rxd8 {[%emt 0:00:00]} 27. Rc3 {[%emt 0:00:02]} Rf8 {[%emt 0:02:01]} 28. Qe2 {[%emt 0:00:31]} Qa7 {[%emt 0:00:25]} 29. Ba4 {[%emt 0:00:27]} Rc8 {[%emt 0:00:24]} 30. Qf3 {[%emt 0:00:32]} Bb4 {[%emt 0:00:43]} 31. Rxc6 {[%emt 0:00:49]} Rxc6 {[%emt 0:00:30]} 32. Bxc6 {[%emt 0:00:00]} Bxa5 {[%emt 0:00:00]} 33. Bd5 {[%emt 0:00:17]} h6 {[%emt 0:00:59]} 34. Qf5 {[%emt 0:00:47]} Qc7 {[%emt 0:00:22]} 35. c4 {[%emt 0:00:28]} Bb4 {[%emt 0:00:59]} 36. Qg6 {[%emt 0:00:30]} a5 {[%emt 0:00:30]} 37. Qa6 {[%emt 0:00:30]} Qe7 {[%emt 0:00:10]} 38. Qc8+ {[%emt 0:00:26]} Qf8 {[%emt 0:00:28]} 39. Qc7 {[%emt 0:00:33]} Qe7 {[%emt 0:00:25]} 40. Qc8+ {[%emt 0:00:35]} Qf8 {[%emt 0:00:11]} 41. Qb7 {[%emt 0:00:35]} Qe7 {[%emt 0:00:36]} 42. Qb8+ {[%emt 0:00:22]} Kh7 {[%emt 0:00:41]} 43. Qb6 {[%emt 0:00:37]} g6 {[%emt 0:00:40]} 44. c5 {[%emt 0:00:30]} Qxc5 {[%emt 0:00:30]} 45. Qf6 {[%emt 0:00:32]} Qe7 {[%emt 0:00:31]} 46. Qxf7+ {[%emt 0:00:59]} Qxf7 {[%emt 0:00:30]} 47. Bxf7 {[%emt 0:00:30]} Kg7 {[%emt 0:00:00]} 48. Bd5 {[%emt 0:00:00]} Kf6 {[%emt 0:00:00]} 49. Kf1 {[%emt 0:00:00]} Bc5 {[%emt 0:00:34]} 50. g3 {[%emt 0:00:41]} Bb4 {[%emt 0:00:32]} 51. Ke2 {[%emt 0:00:43]} Bd6 {[%emt 0:00:26]} 52. Ke3 {[%emt 0:00:29]} g5 {[%emt 0:00:33]} 53. Kf3 {[%emt 0:00:35]} Bc5 {[%emt 0:00:11]} 54. b3 {[%emt 0:00:20]} Bb6 {[%emt 0:00:52]} 55. h4 {[%emt 0:00:09]} Bc5 {[%emt 0:00:13]} 56. hxg5+ {[%emt 0:01:05]} hxg5 {[%emt 0:00:01]} 1/2-1/2